bitfinex/quotes_ETHUSD_20250217
["timestamp","ask_amount","ask_price","bid_price","bid_amount"]
[1739805812550,7.86348,2823.8,2823.2,3.54207]
[1739805812747,13.20348,2823.8,2823.2,3.54207]
[1739805812953,3.54171,2823.5,2823.1,3.54219]
[1739805813176,3.54171,2823.5,2823.0,0.7908]
[1739805813177,0.55,2823.4,2823.0,0.7908]
[1739805813382,0.55,2823.4,2823.0,4.33307]
[1739805813808,0.55,2823.4,2823.0,4.33306]
[1739805815600,0.55,2823.4,2822.8,3.5425]
[1739805815601,3.54209,2823.2,2822.8,3.5425]
[1739805815778,3.54209,2823.2,2822.7,3.0]
[1739805815974,0.79883864,2823.3,2822.8,3.54257]
[1739805816194,0.7727,2823.3,2822.9,3.54236]
[1739805816608,0.7727,2823.3,2822.8,3.54251]
[1739805816924,0.7727,2823.3,2822.6,0.7752]
[1739805816925,3.54221,2823.1,2822.6,0.7752]
[1739805817220,3.54221,2823.1,2822.6,4.31795]
[1739805817455,3.5424,2823.0,2822.6,0.7752]
[1739805817717,0.55,2822.9,2822.4,0.7825]
[1739805817872,0.55,2822.9,2822.5,3.54295]
[1739805818309,0.55,2823.0,2822.6,3.54283]
[1739805818974,0.55,2823.0,2822.5,3.54295]
[1739805819214,5.34,2823.2,2822.6,0.0354267]
[1739805819419,5.34,2823.2,2823.1,3.5422]
[1739805819581,8.88159,2823.6,2823.2,3.54207]
[1739805819782,0.55,2823.5,2823.2,3.54207]
[1739805820321,0.55,2823.5,2823.1,3.54213]
[1739805820816,0.55,2823.5,2822.8,3.5425]
[1739805821019,3.56803864,2823.4,2822.9,3.54242]
[1739805821240,0.55,2823.5,2823.0,3.54229]
[1739805821378,4.09173,2823.5,2823.0,3.71273946]
[1739805822106,0.55,2823.5,2823.0,3.71273946]
[1739805822524,0.55,2823.5,2823.1,3.54212]
[1739805822721,0.55,2823.5,2823.1,3.71249451]
[1739805823220,0.55,2823.5,2823.1,0.17037451]
[1739805823522,8.88158,2823.6,2823.1,3.71251451]
[1739805824019,5.34,2823.6,2823.2,3.54205]
[1739805824417,5.34,2823.6,2823.3,0.17009294]
[1739805824626,5.34,2823.6,2823.0,3.54225]
[1739805824798,4.09177,2823.5,2823.4,0.17001801]
[1739805825001,0.55,2823.4,2823.0,3.54221]
[1739805826136,0.55,2823.4,2822.7,0.8024]
[1739805826312,3.54213,2823.2,2822.7,4.34509]
[1739805826512,3.54183,2823.4,2822.7,0.8024]
[1739805826829,7.6335,2823.5,2823.0,3.54231]
[1739805827323,3.54186,2823.4,2823.0,3.54231]
[1739805828724,0.55,2823.5,2823.2,3.54206]
[1739805829150,4.0917,2823.5,2823.0,3.54228]
[1739805829545,4.0917,2823.5,2823.0,3.54227]
[1739805829721,3.54187,2823.4,2822.8,7.08497]
[1739805829920,4.0917,2823.5,2823.0,3.54226]
[1739805831562,7.63348,2823.5,2823.0,3.54226]
[1739805831726,4.0917,2823.5,2823.0,3.54226]
[1739805832060,7.63348,2823.5,2823.0,3.54226]
[1739805832234,3.54182,2823.4,2823.0,3.54226]
[1739805832424,3.54182,2823.4,2822.9,3.54239]
[1739805832627,0.55,2823.5,2823.0,3.54225]
[1739805832961,4.0917,2823.5,2823.1,3.54216]
[1739805833335,0.55,2823.5,2823.2,3.54205]
[1739805833534,0.55,2823.5,2823.1,3.5422]
[1739805833867,4.09179,2823.5,2822.9,7.08469]
[1739805834362,0.55,2823.5,2822.7,0.8024]
[1739805834568,0.55,2823.5,2823.1,3.5421]
[1739805834925,0.55,2823.5,2823.1,7.08422]
[1739805835126,4.09181,2823.5,2822.9,3.54241]
[1739805835327,3.54193,2823.4,2822.9,3.54241]
[1739805835531,0.55,2823.5,2822.7,0.8024]
[1739805835771,3.54213,2823.2,2822.7,3.5427]
[1739805836064,4.09228,2823.1,2822.6,3.54282]
[1739805836235,4.09228,2823.1,2822.5,3.54286]
[1739805836236,0.55,2822.9,2822.5,3.54286]
[1739805836444,0.55,2822.9,2822.7,0.1704279]
[1739805836445,1.3577,2822.9,2822.7,0.1704279]
[1739805836745,1.3577,2822.9,2822.8,0.17035294]
[1739805837070,1.3577,2822.9,2822.5,3.54285]
[1739805837437,0.55,2822.8,2822.6,0.17050287]
[1739805837749,5.89,2822.8,2822.5,3.54285]
[1739805837930,5.89,2822.8,2822.7,0.1704279]
[1739805838136,5.89,2822.8,2822.6,0.17050287]
[1739805838346,5.89,2822.8,2822.2,3.54325]
[1739805838347,5.89,2822.8,2822.7,0.1704279]
[1739805838766,9.43258,2822.8,2822.3,3.54312]
[1739805838951,9.43258,2822.8,2822.7,0.1704279]
[1739805839153,10.810849,2822.8,2822.3,3.54312]
[1739805839441,9.43258,2822.8,2822.7,0.1704279]
[1739805839638,0.55,2822.4,2821.7,0.70625877]
[1739805839867,4.09364,2822.0,2821.3,0.7737]
[1739805840187,0.55,2821.8,2821.2,3.54455]
[1739805840387,0.96345766,2821.8,2821.2,3.54455]
[1739805840533,4.09398,2821.7,2821.2,3.54455]
[1739805840742,4.09398,2821.7,2821.0,4.31844]
[1739805840934,0.55,2821.7,2821.2,3.54451]
[1739805841438,0.55,2821.7,2821.2,3.54449]
[1739805841947,0.55,2821.5,2821.0,4.31847]
[1739805842246,0.55,2821.5,2821.1,3.5446]
[1739805842452,0.55,2821.5,2821.3,3.54445]
[1739805842650,0.55,2821.5,2821.1,3.5446]
[1739805843082,0.55,2821.5,2821.2,3.54451]
[1739805843266,0.55,2821.5,2821.1,3.5446]
[1739805844954,0.55,2821.5,2821.2,3.54459]
[1739805845155,5.89,2821.5,2821.2,3.54459]
[1739805845483,5.89,2821.5,2821.0,3.54477]
[1739805845990,5.89,2821.5,2820.9,3.54489]
[1739805845991,5.89,2821.5,2821.4,5.15655767]
[1739805846275,5.89,2821.5,2821.4,1.61222767]
[1739805846777,10.8112468,2821.5,2821.4,1.61222767]
[1739805846938,7.2670368,2821.5,2820.8,3.0]
[1739805847143,7.2670368,2821.5,2821.0,3.54476]
[1739805847665,10.8112568,2821.5,2821.0,3.54476]
[1739805847870,7.2670368,2821.5,2821.0,3.54484]
[1739805848065,7.2670368,2821.5,2820.9,3.54495]
[1739805848269,7.2670368,2821.5,2821.1,3.54469]
[1739805848780,10.8112468,2821.5,2821.0,3.54483]
[1739805849655,10.8112468,2821.5,2820.9,3.54489]
[1739805849854,3.54438,2821.4,2820.9,3.54489]
[1739805850172,7.2670368,2821.5,2820.9,3.54489]
[1739805850341,7.2670368,2821.5,2821.1,3.54465]
[1739805850543,7.2670368,2821.5,2821.3,3.54437]
[1739805851093,7.2670368,2821.5,2821.1,3.54462]
[1739805851454,10.8113468,2821.5,2821.2,0.17177387]
[1739805851695,4.09446,2821.3,2821.2,0.17177387]
[1739805851996,7.63903,2821.3,2821.2,0.17177387]
[1739805852201,3.54486,2821.0,2820.6,3.54534]
[1739805852405,0.55,2821.0,2820.6,7.09058]
[1739805852706,0.55,2821.0,2820.6,3.54524]
[1739805852864,0.55,2821.0,2820.4,4.37441]
[1739805853199,0.55,2821.0,2820.4,4.37448]
[1739805853402,0.55,2821.0,2820.6,3.54527]
[1739805853896,0.55,2821.0,2820.7,3.54515]
[1739805854095,6.1193,2821.3,2821.2,3.54459]
[1739805854096,5.34,2821.3,2821.2,3.54459]
[1739805854905,5.34,2821.3,2821.1,3.5447]
[1739805855401,5.34,2821.3,2820.9,0.8291]
[1739805855705,4.89342,2821.2,2820.7,3.54521]
[1739805856007,5.34,2821.3,2821.0,3.54474]
[1739805856361,5.34,2821.3,2821.0,3.54475]
[1739805856691,5.34,2821.3,2821.1,3.54468]
[1739805857012,6.1388,2821.5,2821.2,3.54459]
[1739805857171,0.55,2821.4,2821.3,3.54446]
[1739805857679,0.55,2821.4,2821.0,3.54474]
[1739805857897,0.55,2821.4,2820.8,3.54501]
[1739805858101,0.55,2821.4,2821.0,3.54483]
[1739805858271,0.55,2821.4,2820.8,3.54501]
[1739805858472,4.09434,2821.4,2820.9,3.5449]
[1739805858672,0.55,2821.4,2821.0,3.54479]
[1739805858979,1.847865,2821.4,2820.9,3.5449]
[1739805859158,0.8083,2821.3,2820.9,3.54496]
[1739805859359,0.8083,2821.3,2821.1,3.54467]
[1739805859691,1.847865,2821.4,2821.1,3.54459]
[1739805860006,0.55,2821.4,2821.1,3.54471]
[1739805860499,0.55,2821.4,2821.0,3.54483]
[1739805860899,0.55,2821.4,2821.2,3.5445]
[1739805861565,0.55,2821.4,2821.1,3.54469]
[1739805861897,0.55,2821.4,2821.0,3.54474]
[1739805862101,0.55,2821.4,2821.1,3.54462]
[1739805862303,0.55,2821.4,2820.9,3.5449]
[1739805862631,4.71978245,2821.4,2820.9,3.54496]
[1739805862975,10.05978245,2821.4,2820.9,3.54496]
[1739805863177,6.51537245,2821.4,2821.0,3.54483]
[1739805863393,5.89,2821.4,2821.0,3.54483]
[1739805863591,5.89,2821.4,2821.1,3.54471]
[1739805864267,5.89,2821.4,2821.0,3.5448]
[1739805865163,5.89,2821.4,2821.1,3.54463]
[1739805865704,5.89,2821.4,2821.0,3.5448]
[1739805865998,5.89,2821.4,2821.1,3.54465]
[1739805866200,5.89,2821.4,2820.6,0.7525]
[1739805866427,5.89,2821.4,2821.2,0.17316831]
[1739805866624,5.89,2821.4,2821.1,3.54467]
[1739805866929,5.89,2821.4,2821.3,3.54446]
[1739805867226,5.34,2821.4,2821.3,3.71755327]
[1739805868509,5.34,2821.4,2821.3,0.17309327]
[1739805868855,5.34,2821.4,2821.3,3.54446]
[1739805869136,0.55,2821.7,2821.4,3.54423]
[1739805869433,0.7713,2822.2,2821.7,3.54395]
[1739805869615,0.7713,2822.2,2821.5,3.17294321]
[1739805869817,0.7713,2822.2,2821.2,3.54454]
[1739805869818,0.55,2821.9,2821.8,0.17269689]
[1739805870023,4.86509,2821.9,2821.3,3.54437]
[1739805870220,4.86509,2821.9,2821.8,0.17269689]
[1739805870423,2.5180108,2821.9,2821.1,3.54463]
[1739805870607,0.55,2821.5,2821.0,3.54481]
[1739805870805,4.09424,2821.5,2821.2,0.17305348]
[1739805871132,0.7713,2821.4,2821.3,0.17297844]
[1739805871303,1.3213,2821.4,2821.3,0.17297844]
[1739805871504,1.3213,2821.4,2821.2,3.54452]
[1739805871744,1.3213,2821.4,2821.3,0.17297844]
[1739805871940,1.3213,2821.4,2821.2,3.54452]
[1739805872105,1.3213,2821.4,2821.0,3.54474]
[1739805872305,0.55,2821.3,2820.8,4.36157]
[1739805872524,4.12068864,2821.3,2820.9,0.1733722]
[1739805872707,8.48273586,2821.3,2820.8,3.54507]
[1739805873023,3.5446,2821.2,2820.9,0.1733722]
[1739805873224,1.3818,2821.0,2820.9,0.1733722]
[1739805873409,1.3818,2821.0,2820.5,3.54536]
[1739805873920,1.3818,2821.0,2820.6,0.1735974]
[1739805874295,1.3818,2821.0,2820.7,3.5452]
[1739805874498,1.3818,2821.0,2820.7,7.0904]
[1739805874698,1.3818,2821.0,2820.8,0.17344726]
[1739805874932,1.3818,2821.0,2820.7,3.5452]
[1739805875334,1.3818,2821.0,2820.8,0.17344726]
[1739805875538,1.3818,2821.0,2820.7,3.5452]
[1739805875744,1.3818,2821.0,2820.8,0.17344726]
[1739805875923,1.3818,2821.0,2820.6,3.54534]
[1739805876128,0.7744,2821.6,2821.2,3.54459]
[1739805876443,5.34,2821.7,2821.4,3.54433]
[1739805876595,0.7744,2821.9,2821.6,3.54408]
[1739805876934,0.7744,2821.9,2821.5,3.71746611]
[1739805877099,0.7744,2821.9,2821.7,0.17317607]
[1739805877296,5.34,2822.0,2821.6,0.17311919]
[1739805877497,5.34,2822.3,2822.2,3.54333]
[1739805877836,0.7804,2823.1,2822.6,7.08548]
[1739805878142,4.33883795,2823.4,2822.9,3.54242]
[1739805878343,3.54196,2823.3,2823.0,0.1717887]
[1739805878541,5.66088275,2823.4,2822.9,3.54239]
[1739805878741,0.7804,2823.4,2822.7,0.8045]
[1739805878944,16.72903431,2823.7,2823.1,3.54216]
[1739805879305,16.72903431,2823.7,2823.2,0.17162181]
[1739805880344,15.89631795,2823.7,2823.2,0.17162181]
[1739805882449,0.55,2823.6,2823.2,0.17162181]
[1739805882813,0.55,2823.6,2823.1,3.54218]
[1739805882814,0.55,2823.6,2823.1,3.5421]
[1739805883014,0.55,2823.6,2823.3,3.71345688]
[1739805883205,0.55,2823.6,2823.2,0.17162181]
[1739805883411,0.55,2823.6,2823.4,0.17147195]
[1739805883730,0.57613864,2823.6,2823.3,0.17154688]
[1739805883931,4.11778864,2823.6,2822.9,3.54235]
[1739805884247,0.55,2823.3,2823.0,0.1717717]
[1739805884450,0.8199,2823.5,2823.0,0.1717717]
[1739805884654,0.8199,2823.5,2823.1,3.54218]
[1739805884854,0.55,2823.4,2823.1,3.54218]
[1739805885041,0.55,2823.4,2823.2,0.17162181]
[1739805885551,0.55,2823.4,2822.9,3.54237]
[1739805885910,0.55,2823.4,2823.0,0.1717717]
[1739805886112,3.56810864,2823.3,2823.0,0.1717717]
[1739805886313,3.56810864,2823.3,2822.4,3.54305]
[1739805886314,0.55,2823.0,2822.4,3.54305]
[1739805886540,4.09265,2822.8,2822.3,3.54319]
[1739805886756,12.99108795,2822.8,2822.5,0.1706508]
[1739805887050,3.54292,2822.6,2822.0,3.54355]
[1739805887225,5.1963178,2822.6,2822.0,3.54355]
[1739805887427,5.1963178,2822.6,2821.9,3.54364]
[1739805887623,0.55,2822.4,2821.9,3.54364]
[1739805887828,9.43309,2822.4,2821.7,4.35228]
[1739805888058,4.387255,2823.4,2821.8,0.03543412]
[1739805888059,3.55843795,2823.1,2821.8,0.03543412]
[1739805888354,0.756,2823.2,2822.6,3.54274]
[1739805888515,0.756,2823.2,2822.7,3.54262]
[1739805888712,0.756,2823.2,2822.8,3.54258]
[1739805888942,3.5421,2823.2,2822.6,3.54281]
[1739805889147,0.55,2823.1,2822.7,3.54269]
[1739805889454,0.55,2823.2,2822.8,3.54253]
[1739805891143,0.55,2823.2,2822.6,3.54277]
[1739805891144,0.57613864,2823.2,2822.6,3.54277]
[1739805891471,0.55,2822.7,2822.4,3.54305]
[1739805891631,0.55,2822.7,2822.4,7.08606]
[1739805891952,4.31643795,2823.3,2822.1,0.03543044]
[1739805891953,0.758,2823.3,2822.7,3.54268]
[1739805892160,3.54178,2823.5,2823.0,3.54232]
[1739805892363,3.54178,2823.5,2822.9,7.08473]
[1739805892659,0.55,2823.4,2822.9,3.54235]
[1739805893219,0.8297,2823.6,2823.1,3.5421]
[1739805893422,0.8297,2823.6,2822.9,3.54234]
[1739805893631,0.55,2823.5,2823.2,3.54198]
[1739805893825,5.89,2823.5,2823.2,3.54198]
[1739805894061,5.34,2823.5,2823.2,3.54198]
[1739805894665,0.55,2823.3,2822.3,4.32495]
[1739805894873,0.55,2823.1,2822.9,3.54245]
[1739805895233,0.55,2823.1,2822.7,3.5426]
[1739805895431,5.34,2823.2,2822.7,3.5426]
[1739805895631,5.34,2823.2,2822.8,3.54255]
[1739805896168,5.34,2823.2,2822.9,0.168137]
[1739805896390,5.34,2823.2,2822.9,3.54244]
[1739805896747,5.34,2823.2,2823.0,0.16806205]
[1739805896942,5.34,2823.2,2822.9,3.54239]
[1739805897362,5.34,2823.2,2823.0,0.16806205]
[1739805898377,5.34,2823.2,2823.1,3.5422]
[1739805898881,9.71129,2823.6,2823.1,3.71018711]
[1739805899880,9.71134,2823.6,2823.1,3.71016711]
[1739805900086,3.54176,2823.5,2823.1,0.16798711]
[1739805900298,3.54185,2823.4,2823.1,0.16798711]
[1739805900511,4.09196,2823.3,2823.1,0.16798711]
[1739805900796,4.09227,2823.1,2822.5,3.54285]
[1739805901000,4.09249,2822.9,2822.4,3.54305]
[1739805901302,3.54258,2822.8,2822.6,0.16818805]
[1739805901609,4.09253,2822.9,2822.7,0.16821059]
[1739805901798,5.2905878,2822.9,2822.7,0.16821059]
[1739805901983,5.2905878,2822.9,2822.1,7.08676]
[1739805901984,4.09279,2822.7,2822.1,7.08676]
[1739805902304,1.3087,2822.5,2821.9,7.08729]
[1739805902459,1.3087,2822.5,2821.9,7.08723]
[1739805902460,4.85169,2822.5,2821.9,7.08723]
[1739805902660,4.85169,2822.5,2821.9,3.54359]
[1739805903701,0.02613864,2822.4,2821.7,3.54391]
[1739805903904,1.3087,2822.5,2822.0,3.54357]
[1739805904105,0.55,2822.5,2822.2,3.54332]
[1739805904312,5.34,2822.4,2822.2,3.54332]
[1739805904601,5.34,2822.4,2822.3,3.5432]
[1739805905592,7.43383286,2823.4,2822.7,0.8224]
[1739805905905,2.09383286,2823.4,2822.9,3.54237]
[1739805906109,0.55,2823.3,2823.0,3.54227]
[1739805906405,0.7659,2823.4,2823.0,3.54227]
[1739805906611,0.7963,2823.8,2822.8,0.03542281]
[1739805906768,0.7963,2823.8,2823.4,3.54182]
[1739805907215,4.45845182,2824.3,2823.7,3.54145]
[1739805907216,0.7845,2824.2,2823.7,3.54145]
[1739805907397,0.7845,2824.2,2823.7,3.54141]
[1739805907601,4.32533,2824.2,2823.7,3.54141]
[1739805907902,0.7881,2824.4,2824.1,3.54087]
[1739805908108,11.50144,2824.6,2823.9,4.30988]
[1739805908314,11.50144,2824.6,2824.2,0.16704435]
[1739805908485,3.54063,2824.4,2823.8,3.54127]
[1739805908677,3.54063,2824.4,2823.7,3.54132]
[1739805909012,7.961,2824.6,2823.7,0.03541014]
[1739805909314,4.31838,2825.0,2823.9,0.8089]
[1739805909521,3.54008,2824.8,2824.2,3.54077]
[1739805909819,3.54007,2824.8,2824.2,3.54077]
[1739805910192,3.56637864,2824.7,2824.0,3.54103]
[1739805910497,0.02613864,2824.7,2824.0,3.54103]
[1739805910702,0.02613864,2824.7,2824.2,3.54082]
[1739805910904,3.54034,2824.6,2824.0,3.54103]
[1739805911223,0.55,2824.7,2824.2,3.54071]
[1739805911367,0.55,2824.7,2824.1,3.70756121]
[1739805911368,4.31835,2825.0,2824.3,3.54069]
[1739805911563,5.54999118,2825.0,2824.4,0.16646657]
[1739805911806,0.57613864,2824.9,2824.4,3.70701657]
[1739805912174,0.55,2824.9,2824.4,3.70701657]
[1739805912381,0.55,2824.9,2824.5,3.5404]
[1739805912584,0.55,2824.9,2824.6,0.16557957]
[1739805912585,9.43003,2824.9,2824.6,0.16557957]
[1739805912784,9.43003,2824.9,2824.3,3.54067]
[1739805913012,5.89,2824.9,2824.5,3.54043]
[1739805913370,5.89,2824.9,2824.6,0.16556263]
[1739805913571,5.89,2824.9,2824.3,3.54068]
[1739805913774,5.89,2824.9,2824.4,3.7061666]
[1739805913989,5.89,2824.9,2824.5,3.54037]
[1739805914311,5.89,2824.9,2824.6,0.16556686]
[1739805914671,5.89,2824.9,2824.4,3.54045]
[1739805914919,9.42995,2824.9,2824.7,0.165492]
[1739805915077,9.42995,2824.9,2824.4,3.54045]
[1739805915274,9.42995,2824.9,2824.8,0.16541715]
[1739805915504,9.42995,2824.9,2824.4,3.54045]
[1739805915813,9.42995,2824.9,2824.2,3.54071]
[1739805915984,9.42995,2824.9,2824.3,3.5406]
[1739805916176,9.42995,2824.9,2824.4,0.1657166]
[1739805916689,0.02613864,2824.8,2824.4,0.1657166]
[1739805917014,5.89,2824.9,2824.4,0.1657166]
[1739805917176,5.89,2824.9,2824.5,3.54043]
[1739805917371,9.42995,2824.9,2824.6,0.16553021]
[1739805917622,5.89,2824.9,2824.4,3.54046]
[1739805917797,0.02613864,2824.8,2824.7,0.16545535]
[1739805917977,9.43001,2824.9,2824.4,3.54046]
[1739805918179,0.02613864,2824.8,2824.4,3.54046]
[1739805918424,0.02613864,2824.8,2824.5,0.16560508]
[1739805918715,3.56627864,2824.8,2824.5,0.16560508]
[1739805918916,9.42998,2824.9,2824.5,0.16560508]
[1739805919119,3.54007,2824.8,2824.4,3.54053]
[1739805919272,3.54007,2824.8,2824.6,0.16553021]
[1739805919476,3.54007,2824.8,2824.5,0.16560508]
[1739805919698,9.43002,2824.9,2824.7,0.16545535]
[1739805919908,5.89,2824.9,2824.6,0.16553021]
[1739805920115,5.89,2824.9,2824.8,0.1653805]
[1739805920324,9.42994,2824.9,2824.7,0.16545535]
[1739805920622,9.42994,2824.9,2824.8,0.16536498]
[1739805920996,9.42994,2824.9,2824.4,3.54048]
[1739805921201,3.5402,2824.7,2824.5,0.16558956]
[1739805921492,0.02613864,2824.8,2824.3,3.54068]
[1739805921706,3.56623864,2824.8,2824.6,0.16551469]
[1739805921905,3.56623864,2824.8,2824.2,3.54073]
[1739805922108,3.56623864,2824.8,2824.3,3.54063]
[1739805922289,3.56623864,2824.8,2824.3,3.7063693]
[1739805922493,3.56623864,2824.8,2824.3,0.1657393]
[1739805922494,0.02613864,2824.8,2824.3,0.1657393]
[1739805922708,5.89,2824.9,2824.0,3.0]
[1739805922890,5.89,2824.9,2824.6,3.54021]
[1739805923421,3.53966,2825.2,2824.7,0.92662289]
[1739805923422,5.34,2825.2,2824.7,0.92662289]
[1739805923626,5.34,2825.2,2825.1,3.53969]
[1739805923826,6.1029,2825.5,2825.1,3.53969]
[1739805924123,5.34,2825.5,2825.2,3.53956]
[1739805924336,5.34,2825.5,2825.1,3.53969]
[1739805924527,3.53909,2825.6,2825.3,0.16494844]
[1739805924680,4.35231,2825.7,2825.2,3.70456327]
[1739805924879,3.53909,2825.6,2825.4,0.15888439]
[1739805925203,3.53909,2825.6,2824.7,3.7612]
[1739805925410,3.53926,2825.5,2824.9,3.53987]
[1739805925720,3.53979,2825.1,2824.7,0.7612]
[1739805926085,3.53979,2825.1,2824.6,3.54031]
[1739805926284,3.53979,2825.1,2824.8,0.15948605]
[1739805926480,3.53979,2825.1,2824.6,3.54031]
[1739805926702,3.53979,2825.1,2824.9,0.1594112]
[1739805927027,3.53979,2825.1,2824.6,3.54024]
[1739805927192,3.53979,2825.1,2825.0,0.15933636]
[1739805927392,4.08979,2825.1,2824.5,0.7824]
[1739805927591,4.08983,2825.0,2824.6,0.15963576]
[1739805928822,5.34,2825.1,2824.8,3.53995]
[1739805929008,5.34,2825.1,2824.8,3.54005]
[1739805929210,5.34,2825.1,2824.9,0.1594112]
[1739805929425,5.34,2825.1,2824.7,7.08023]
[1739805929595,5.34,2825.1,2825.0,0.15933636]
[1739805929795,5.34,2825.1,2824.7,7.08023]
[1739805930008,5.34,2825.1,2824.8,0.15948605]
[1739805930233,5.34,2825.1,2824.8,3.53999]
[1739805930436,5.34,2825.1,2824.9,3.53992]
[1739805930635,5.34,2825.1,2824.9,3.6993312]
[1739805930842,5.34,2825.1,2825.0,3.53982]
[1739805931136,5.34,2825.1,2825.0,0.15933636]
[1739805931330,0.55,2825.3,2825.0,0.15933636]
[1739805931833,4.08946,2825.3,2825.0,0.15933636]
[1739805932043,4.08946,2825.3,2824.6,3.5402]
[1739805932345,3.5397,2825.1,2824.6,7.08046]
[1739805932496,4.0899,2825.0,2824.7,0.1595609]
[1739805932696,4.0899,2825.0,2824.5,4.32284]
[1739805933033,0.55,2825.0,2824.6,3.5402]
[1739805933208,0.55,2825.0,2824.6,3.69985312]
[1739805933407,4.08976,2825.1,2824.6,0.15962312]
[1739805933993,7.62955,2825.1,2824.6,0.15962312]
[1739805934232,3.53994,2824.9,2824.6,0.15962312]
[1739805934545,3.53994,2824.9,2824.4,3.54056]
[1739805934713,3.54013,2824.8,2824.7,0.15959882]
[1739805935240,0.55,2824.9,2824.3,4.30902]
[1739805935395,0.55,2824.9,2824.7,0.15959882]
[1739805935601,0.55,2824.9,2824.5,3.54044]
[1739805935802,0.55,2824.9,2824.6,0.15967368]
[1739805936454,3.53966,2825.2,2824.3,0.7684]
[1739805936455,4.28997,2825.2,2824.8,3.54]
[1739805936959,0.7504,2825.2,2824.9,0.15944912]
[1739805937463,0.7504,2825.2,2825.0,3.5398]
[1739805937597,0.55,2825.3,2825.0,3.69917428]
[1739805937903,9.44420149,2825.4,2825.0,0.15937428]
[1739805937904,3.53958,2825.2,2825.0,0.15937428]
[1739805938228,4.08958,2825.2,2825.1,0.15929944]
[1739805938842,4.08958,2825.2,2824.7,3.54014]
[1739805939198,12.43359149,2825.4,2824.9,3.53994]
[1739805939398,8.89420149,2825.4,2825.0,3.53977]
[1739805939612,5.34,2825.4,2825.1,0.15929944]
[1739805939837,5.34,2825.4,2825.1,3.69897944]
[1739805940039,5.34,2825.4,2824.8,0.7904]
[1739805940040,5.34,2825.8,2825.2,3.53957]
[1739805940248,3.56514864,2825.7,2825.2,0.15928357]
[1739805940599,4.30514,2825.8,2825.3,3.53942]
[1739805940831,4.30514,2825.8,2825.4,0.15913392]
[1739805941238,3.53902,2825.7,2825.4,0.15913392]
[1739805941441,3.56526864,2825.6,2825.1,3.53961]
[1739805941660,3.53913,2825.6,2825.5,0.1590591]
[1739805941813,3.53913,2825.6,2825.1,3.53961]
[1739805942013,4.3052,2825.8,2825.3,3.53944]
[1739805942224,4.3052,2825.8,2825.2,0.15928357]
[1739805942225,3.53898,2825.7,2825.4,0.15913392]
[1739805942439,3.53914,2825.6,2825.0,3.53973]
[1739805942646,0.55,2825.5,2824.8,4.33039]
[1739805942949,4.08925,2825.5,2825.1,0.1593584]
[1739805943157,0.7663,2825.8,2824.8,0.7904]
[1739805943315,3.53939,2825.4,2825.2,0.15928357]
[1739805943511,3.53964,2825.2,2824.4,0.7831]
[1739805943711,5.34,2825.2,2824.4,0.7831]
[1739805943930,5.34,2825.2,2825.0,3.53975]
[1739805944132,3.56545864,2825.4,2824.9,3.53994]
[1739805944331,4.08945,2825.3,2824.8,3.54006]
[1739805944527,4.08945,2825.3,2824.4,0.7831]
[1739805944528,0.55,2825.1,2824.7,3.54011]
[1739805944733,0.55,2825.2,2824.8,3.54001]
[1739805945403,4.08937,2825.4,2824.8,3.54001]
[1739805945554,0.55,2825.2,2824.8,3.54001]
[1739805945853,0.8222,2825.1,2824.7,3.54007]
[1739805946254,0.55,2825.2,2824.8,7.08002]
[1739805946451,0.55,2825.2,2824.8,3.53997]
[1739805946624,0.55,2825.2,2825.0,3.53981]
[1739805946825,0.55,2825.2,2824.6,7.0805]
[1739805947142,0.55,2825.2,2824.6,3.54024]
[1739805947341,0.55,2825.2,2824.7,3.54019]
[1739805947662,0.55,2825.2,2824.8,3.54001]
[1739805948452,0.55,2825.2,2825.1,3.53969]
[1739805948652,0.55,2825.2,2824.9,7.07972]
[1739805948814,0.8222,2825.4,2824.9,0.98256756]
[1739805949015,0.8222,2825.4,2825.1,3.53966]
[1739805949459,0.8222,2825.4,2824.9,7.84629]
[1739805949621,0.8222,2825.4,2824.9,4.30643]
[1739805949819,0.55,2825.5,2824.9,0.7666]
[1739805950163,0.55,2825.5,2825.1,3.5396]
[1739805950355,0.55,2825.5,2825.2,3.53952]
[1739805950846,0.55,2825.5,2825.2,7.07904]
[1739805951046,0.55,2825.5,2825.2,3.53952]
[1739805951234,0.55,2825.5,2825.3,3.53942]
[1739805951567,0.55,2825.5,2825.2,3.53952]
[1739805954765,0.55,2825.5,2825.1,3.53963]
[1739805955428,0.55,2825.5,2825.1,3.53961]
[1739805955873,4.08923,2825.5,2825.1,3.53961]
[1739805956472,0.55,2825.5,2825.2,0.15905185]
[1739805957723,4.08924,2825.5,2825.2,0.15905185]
[1739805958179,0.55,2825.5,2825.2,0.15905185]
[1739805958480,0.55,2825.5,2825.2,3.69853185]
[1739805959274,0.55,2825.5,2825.2,0.15905185]
[1739805959462,4.0892,2825.5,2825.2,0.15905185]
[1739805959635,4.0892,2825.5,2825.0,3.53973]
[1739805959979,4.10420149,2825.4,2825.3,0.15897702]
[1739805960133,0.55,2825.2,2824.9,3.5399]
[1739805960328,7.64352149,2825.4,2825.3,0.15897702]
[1739805960585,0.55,2825.2,2824.9,3.53988]
[1739805960913,0.55,2825.3,2824.9,3.53988]
[1739805961997,4.08945,2825.3,2824.9,3.53988]
[1739805962319,0.55,2825.1,2824.9,3.53992]